fUST/lending_fUST_20241013
["ID","MTS","AMOUNT","RATE_DAILY","PERIOD"]
[340190428,1728803194172,-1162.127582,0.000298,7]
[340190429,1728803194197,-1162.127582,0.000298,7]
[340190430,1728803194226,-371.972596,0.000298,7]
[340190431,1728803194250,-151.0,0.000298,7]
[340190432,1728803194274,-157.175027,0.000298,7]
[340190433,1728803194298,-180.162095,0.000298,7]
[340190434,1728803194321,-180.162095,0.000298,7]
[340190435,1728803194344,-151.0,0.000298,7]
[340190436,1728803194368,-201.541623,0.000298,7]
[340190437,1728803194391,-151.0,0.000298,3]
[340190438,1728803194415,-151.0,0.000298,7]
[340190439,1728803194439,-151.0,0.000298,7]
[340190440,1728803194465,-202.20031,0.000298,7]
[340190441,1728803194489,-202.20031,0.000298,7]
[340190442,1728803194512,-151.0,0.000298,7]
[340190443,1728803194535,-151.0,0.000298,7]
[340190444,1728803194558,-151.0,0.000298,7]
[340190445,1728803194583,-151.0,0.000298,7]
[340190446,1728803194606,-151.0,0.000298,7]
[340190447,1728803194629,-151.0,0.000298,7]
[340190448,1728803194651,-151.0,0.000298,7]
[340190449,1728803194676,-150.112233,0.000298,6]
[340190450,1728803194700,-230.902729,0.000298,7]
[340190451,1728803194723,-293.990421,0.000298,7]
[340190452,1728803194748,-230.902729,0.000298,7]
[340190453,1728803194770,-293.990421,0.000298,7]
[340190454,1728803194793,-151.0,0.000298,7]
[340190455,1728803194817,-151.0,0.000298,7]
[340190456,1728803194840,-151.0,0.000298,7]
[340190457,1728803194866,-686.734221,0.000298,7]
[340190458,1728803194889,-686.734221,0.000298,7]
[340190459,1728803194923,-343.039034,0.000298,7]
[340190460,1728803194950,-343.039034,0.000298,7]
[340190461,1728803194977,-194.339706,0.000298,7]
[340190462,1728803195003,-194.339706,0.000298,7]
[340190463,1728803195029,-244.413908,0.000298,7]
[340190464,1728803195054,-244.413908,0.000298,7]
[340190465,1728803195078,-151.0,0.000298,7]
[340190466,1728803195102,-155.53140686,0.000298,7]
[340190467,1728803195126,-151.0,0.000298,7]
[340190468,1728803195149,-151.0,0.000298,7]
[340190469,1728803195174,-578.192089,0.000298,7]
[340190470,1728803195198,-578.192089,0.000298,7]
[340190471,1728803195224,-151.0,0.000298,7]
[340190472,1728803195249,-151.0,0.000298,7]
[340190473,1728803195273,-151.0,0.000298,7]
[340190474,1728803195297,-54036.82076055,0.00029871,4]
[340190475,1728803227149,-250.0,0.00028857,2]
[340190476,1728803227171,-250.0,0.00028936,2]
[340190477,1728803227192,-250.0,0.00029015,2]
[340190478,1728803227213,-250.0,0.00029094,2]
[340190479,1728803227238,-250.0,0.00029173,2]
[340190480,1728803227259,-250.0,0.00029252,2]
[340190481,1728803227283,-250.0,0.00029332,2]
[340190482,1728803227307,-250.0,0.00029411,2]
[340190483,1728803227328,-250.0,0.0002949,2]
[340190484,1728803227349,-250.0,0.00029569,2]
[340190485,1728803227370,-250.0,0.00029648,2]
[340190486,1728803227392,-250.0,0.00029727,2]
[340190487,1728803227413,-300.0,0.00029768,2]
[340190488,1728803227434,-300.0,0.00029768,2]
[340190489,1728803227541,-295.97088611,0.00029769,2]
[340190490,1728803227561,-271.99054454,0.00029769,2]
[340190491,1728803227582,-214.19453687,0.00029769,2]
[340190492,1728803227607,-509.22260634,0.00029769,2]
[340190493,1728803227629,-500.0,0.00029769,2]
[340190494,1728803227650,-205.75884697,0.00029769,2]
[340190495,1728803227670,-190.39338117,0.00029769,2]
[340190496,1728803227691,-500.0,0.00029773,5]
[340190497,1728803227711,-151.0,0.0002979,7]
[340190498,1728803227732,-151.0,0.0002979,7]
[340190499,1728803227753,-151.0,0.0002979,7]
[340190500,1728803227775,-151.0,0.000298,7]
[340190501,1728803227801,-151.0,0.000298,7]
[340190502,1728803227822,-250.0,0.00029806,2]
[340190503,1728803227843,-311.98232205,0.00029871,4]
[340190504,1728803227864,-151.0,0.00029872,7]
[340190505,1728803227884,-189.93794,0.00029872,7]
[340190506,1728803227905,-578.192089,0.00029872,7]
[340190507,1728803227926,-578.192089,0.00029872,7]
[340190508,1728803227948,-167.563721,0.00029872,7]
[340190509,1728803227970,-157.21942,0.00029872,7]
[340190510,1728803227991,-154.968524,0.00029872,7]
[340190511,1728803228012,-151.0,0.00029872,7]
[340190512,1728803228034,-500.0,0.00029873,5]
[340190513,1728803228054,-500.0,0.00029873,5]
[340190514,1728803228076,-608.73119954,0.00029873,5]
[340190515,1728803228097,-467.39358006,0.00029873,5]
[340190516,1728803237166,-1000.0,0.0002967,2]
[340190517,1728803237192,-3633.43768794,0.0002969,2]
[340190518,1728803239128,-6139.97696161,0.0002969,2]
[340190521,1728803369110,-154.0,0.0002675,2]
[340190522,1728803369134,-164.55111,0.00026954,2]
[340190581,1728803441136,-484.610126,0.00027397,2]
[340190582,1728803441147,-163.769692,0.00027756,2]
[340190583,1728803441157,-163.769692,0.00027768,2]
[340190584,1728803441168,-163.769692,0.00027779,2]
[340190585,1728803441180,-163.769692,0.00027791,2]
[340190586,1728803441192,-163.769692,0.00027802,2]
[340190587,1728803441203,-163.769692,0.00027814,2]
[340190588,1728803441213,-163.769692,0.00027825,2]
[340190589,1728803441224,-163.769692,0.00027837,2]
[340190590,1728803441234,-163.769692,0.00027848,2]
[340190591,1728803441244,-163.769692,0.0002786,2]
[340190592,1728803441254,-163.769692,0.00027872,2]
[340190593,1728803441264,-163.769692,0.00027883,2]
[340190594,1728803441273,-163.769692,0.00027895,2]
[340190595,1728803441285,-152.58439594,0.00028757,2]
[340190596,1728803441295,-500.0,0.00029,2]
[340190597,1728803441307,-500.0,0.00029,2]
[340190598,1728803441317,-5773.8863001,0.00029486,2]
[340190599,1728803441329,-300.0,0.00029509,2]
[340190600,1728803441339,-300.0,0.00029509,2]
[340190601,1728803441349,-314.20462913,0.00029528,2]
[340190602,1728803441587,-514.82640977,0.00029528,2]
[340190603,1728803441649,-9550.02889703,0.00029528,2]
[340190604,1728803441661,-150.0,0.00029631,2]
[340190605,1728803441672,-429.15,0.0002967,10]
[340190606,1728803441682,-1000.0,0.0002967,2]
[340190607,1728803441694,-207.17962028,0.00029679,2]
[340190608,1728803441705,-499.9361758,0.00029679,2]
[340190609,1728803441715,-356.45582444,0.00029679,2]
[340190610,1728803441725,-336.15077012,0.0002968,2]
[340190611,1728803441734,-83439.278887,0.0002968,4]
[340190612,1728803441744,-5030.14688831,0.0002968,4]
[340190617,1728803443787,-29.06957856,0.0002968,4]
[340190618,1728803443800,-804.09197599,0.0002968,4]
[340190623,1728803446580,-2440.45,0.0002968,4]
[340190624,1728803446938,-1312.07907629,0.0002968,4]
[340190625,1728803485349,165.0,0.0002675,2]
[340190631,1728803722466,4748.82198345,0.0002,10]
[340190632,1728804010078,473.08023213,0.00023408,2]
[340190638,1728804435175,-465.40401161,0.00024579,2]
[340190639,1728804435198,-166.666667,0.0002562,2]
[340190640,1728804435220,-511.6064451,0.00025848,2]
[340190641,1728804435244,-250.0,0.00025895,2]
[340190642,1728804435268,-158.97147262,0.00025937,2]
[340190643,1728804435291,-161.309504,0.00025961,2]
[340190644,1728804435315,-250.0,0.00025966,2]
[340190645,1728804435336,-1972.2138446,0.00025979,2]
[340190646,1728804435359,-250.0,0.00026037,2]
[340190647,1728804435380,-150.0,0.00026049,2]
[340190648,1728804435401,-340.3744692,0.00026055,2]
[340190649,1728804435425,-250.0,0.00026108,2]
[340190650,1728804435447,-3000.0,0.00026108,2]
[340190651,1728804435470,-191.0407997,0.00026125,2]
[340190652,1728804435492,-565.46493,0.00026144,2]
[340190653,1728804435515,-250.0,0.00026179,2]
[340190654,1728804435538,-250.0,0.0002625,2]
[340190655,1728804435561,-250.0,0.00026321,2]
[340190656,1728804435583,-300.0,0.00026391,2]
[340190657,1728804435604,-300.0,0.00026391,2]
[340190658,1728804435627,-250.0,0.00026392,2]
[340190659,1728804435650,-250.0,0.00026463,2]
[340190660,1728804435676,-158.97147261,0.00026505,2]
[340190661,1728804435698,-250.0,0.00026534,2]
[340190662,1728804435721,-250.0,0.00026605,2]
[340190663,1728804435744,-250.0,0.00026676,2]
[340190664,1728804435852,-250.0,0.00026747,2]
[340190665,1728804435878,-250.0,0.00026818,2]
[340190666,1728804435901,-250.0,0.00026889,2]
[340190667,1728804435923,-250.0,0.0002696,2]
[340190668,1728804435947,-250.0,0.00027031,2]
[340190669,1728804435972,-250.0,0.00027102,2]
[340190670,1728804435995,-250.0,0.00027173,2]
[340190671,1728804436019,-250.0,0.00027244,2]
[340190672,1728804436042,-460.37962,0.00027397,2]
[340190673,1728804436064,-4718.09443894,0.00027472,2]
[340190675,1728804521784,325.99,0.00024,2]
[340190683,1728804559087,168.57289,0.00025556,2]
[340190684,1728804559118,-300.0,0.00026421,2]
[340190685,1728804559144,-300.0,0.00026421,2]
[340190686,1728804559168,-14686.26036059,0.00026422,2]
[340190692,1728804569148,-2933.75218248,0.00026422,2]
[340190693,1728804573098,-7279.98745693,0.00026422,2]
[340190694,1728804579003,157.0,0.0002648,2]
[340190731,1728804632539,-2720.7497289,0.000275,2]
[340190735,1728804632564,-1455.64346195,0.000275,2]
[340190740,1728804632596,-784.5084333,0.000275,2]
[340190742,1728804632606,-300.0,0.00027572,2]
[340190744,1728804632616,-502.19649685,0.00027573,5]
[340190746,1728804632628,-436.83272879,0.00027573,5]
[340190749,1728804632641,-63.78607972,0.00027573,5]
[340190750,1728804632649,-500.0,0.00027573,5]
[340190752,1728804632658,-304.87059952,0.00027573,5]
[340190755,1728804632669,-500.0,0.00027573,5]
[340190756,1728804632679,-8340.8885976,0.00027973,2]
[340190758,1728804632692,-500.0,0.00027999,2]
[340190761,1728804632703,-500.0,0.00027999,2]
[340190763,1728804632715,-500.0,0.00027999,2]
[340190765,1728804632725,-500.0,0.00027999,2]
[340190767,1728804632735,-500.0,0.00027999,2]
[340190769,1728804632746,-500.0,0.00027999,2]
[340190771,1728804632757,-500.0,0.00027999,2]
[340190773,1728804632768,-155.25049468,0.00027999,2]
[340190775,1728804632779,-291.20697166,0.00027999,2]
[340190777,1728804632788,-336.15077012,0.00028,2]
[340190778,1728804632798,-4585.9377926,0.00028,15]
[340190802,1728804639041,-640.0,0.00028,15]
[340190805,1728804640702,-5189.08093509,0.00028,15]
[340190806,1728804640715,-13812.42155303,0.00028,15]
[340190807,1728804640724,-552.09959309,0.00028073,5]
[340190808,1728804640733,-500.0,0.00028073,5]
[340190809,1728804640743,-505.12322668,0.00028073,5]
[340190810,1728804640752,-500.0,0.00028073,5]
[340190811,1728804640762,-500.0,0.00028073,5]
[340190812,1728804640771,-413.7492508,0.00028493,2]
[340190813,1728804640780,-413.7492508,0.00028493,2]
[340190814,1728804640790,-827.2076053,0.00028878,2]
[340190815,1728804640800,-456.8906103,0.00028878,2]
[340190816,1728804640810,-1999.99999901,0.00028887,2]
[340190817,1728804640819,-1000.0,0.00028942,5]
[340190818,1728804640829,-1000.0,0.00028942,5]
[340190819,1728804640839,-1194.21750155,0.00029,120]
[340190820,1728804640848,-166.666667,0.00029112,2]
[340190821,1728804640858,-413.7492508,0.00029315,2]
[340190822,1728804640867,-156.5018462,0.00029315,2]
[340190823,1728804640877,-219.0646598,0.00029315,2]
[340190824,1728804640887,-210.0488919,0.00029315,2]
[340190825,1728804640897,-413.7492508,0.00029315,2]
[340190826,1728804640906,-210.0488919,0.00029315,2]
[340190827,1728804640917,-429.1959659,0.00029315,2]
[340190828,1728804640927,-210.0488919,0.00029315,2]
[340190829,1728804640938,-413.7492508,0.00029315,2]
[340190830,1728804640949,-210.0488919,0.00029315,2]
[340190831,1728804640958,-413.7492508,0.00029315,2]
[340190832,1728804640968,-413.7492508,0.00029315,2]
[340190833,1728804640977,-210.0488919,0.00029315,2]
[340190834,1728804640987,-210.0488919,0.00029315,2]
[340190835,1728804640997,-413.7492508,0.00029315,2]
[340190836,1728804641009,-413.7492508,0.00029315,2]
[340190837,1728804641018,-210.0488919,0.00029315,2]
[340190838,1728804641028,-413.7492508,0.00029315,2]
[340190839,1728804641038,-406.415434,0.00029315,2]
[340190840,1728804641048,-210.0488919,0.00029315,2]
[340190841,1728804641058,-210.0488919,0.00029315,2]
[340190842,1728804641067,-442.601413,0.00029315,2]
[340190843,1728804641076,-5773.8863002,0.00029365,2]
[340190844,1728804641086,-1000.0,0.00029442,5]
[340190845,1728804641096,-518.67647806,0.00029442,5]
[340190846,1728804641106,-517.10721456,0.00029442,5]
[340190847,1728804641115,-375.271,0.00029514,23]
[340190848,1728804641125,-1000.0,0.00029561,2]
[340190849,1728804641134,-3195.61671159,0.00029573,2]
[340190850,1728804641143,-8508.35174628,0.0002958,5]
[340190851,1728804641153,-804.06,0.00029631,10]
[340190852,1728804641163,-755.88,0.00029631,10]
[340190853,1728804641172,-629.9,0.00029631,10]
[340190854,1728804641184,-356.45582444,0.00029639,2]
[340190855,1728804641195,-499.9361758,0.00029639,2]
[340190856,1728804641205,-207.17962028,0.00029639,2]
[340190857,1728804641215,-524.92,0.0002964,10]
[340190858,1728804641224,-30946.3679615,0.0002964,4]
[340190859,1728804641234,-5138.35052328,0.00029651,4]
[340190915,1728805640144,-164.55111,0.00025266,2]
[340190916,1728805640165,-166.666666,0.0002563,2]
[340190917,1728805640187,-200.0,0.0002565,15]
[340190918,1728805640210,-250.0,0.00025711,2]
[340190919,1728805640230,-228.1051446,0.00025741,2]
[340190920,1728805640251,-250.0,0.00025782,2]
[340190921,1728805640272,-250.0,0.00025852,2]
[340190922,1728805640294,-864.88716809,0.00025888,2]
[340190929,1728805745143,-1000.0,0.00025204,2]
[340190930,1728805745169,-1000.0,0.0002528,2]
[340190931,1728805745190,-1812.46228411,0.00025888,2]
[340190932,1728805745212,-250.0,0.00025923,2]
[340190933,1728805745233,-322.1332747,0.00025968,2]
[340190934,1728805745255,-1500.00000001,0.00025968,2]
[340190935,1728805745277,-250.0,0.00025993,2]
[340190936,1728805745298,-250.0,0.00026064,2]
[340190937,1728805745321,-250.0,0.00026134,2]
[340190938,1728805745343,-250.0,0.00026205,2]
[340190939,1728805745364,-300.0,0.00026228,2]
[340190940,1728805745385,-184.52508894,0.00026229,2]
[340190941,1728805747103,-2815.47491106,0.00026229,2]
[340190942,1728805747127,-250.0,0.00026275,2]
[340190943,1728805747148,-250.0,0.00026346,2]
[340190944,1728805747172,-250.0,0.00026416,2]
[340190945,1728805747192,-150.0,0.0002648,2]
[340190946,1728805747213,-250.0,0.00026487,2]
[340190947,1728805747234,-250.0,0.00026558,2]
[340190948,1728805747255,-250.0,0.00026628,2]
[340190949,1728805755100,-250.0,0.00026699,2]
[340190950,1728805755122,-250.0,0.00026769,2]
[340190951,1728805755143,-250.0,0.0002684,2]
[340190952,1728805755168,-250.0,0.0002691,2]
[340190953,1728805755190,-250.0,0.00026981,2]
[340190954,1728805788735,2124.21938,0.00026128,2]
[340190955,1728805788758,875.78062,0.00026128,2]
[340190968,1728805828147,166.666666,0.00025693,2]
[340190991,1728805839867,-170.1335279,0.00027028,2]
[340190992,1728805839877,-250.0,0.00027051,2]
[340190993,1728805839887,-1816.13831518,0.00027171,2]
[340190994,1728805839897,-300.0,0.00027172,2]
[340190995,1728805839907,-300.0,0.00027172,2]
[340190996,1728805839917,-8279.40933298,0.00027173,2]
[340190997,1728805839927,-224.10051342,0.00027265,2]
[340190998,1728805839937,-24900.0,0.00027266,2]
[340190999,1728805839947,-500.0,0.00027272,2]
[340191000,1728805839957,-500.0,0.00027272,2]
[340191001,1728805839966,-500.0,0.00027272,2]
[340191002,1728805839977,-500.0,0.00027272,2]
[340191003,1728805839986,-500.0,0.00027272,2]
[340191004,1728805839996,-500.0,0.00027272,2]
[340191005,1728805840007,-500.0,0.00027272,2]
[340191006,1728805840016,-418.91840179,0.00027272,2]
[340191007,1728805840025,-500.0,0.00027272,2]
[340191008,1728805840035,-500.0,0.00027272,2]
[340191009,1728805840044,-439.94111262,0.00027272,2]
[340191010,1728805840054,-500.7932319,0.00027273,2]
[340191011,1728805840064,-552.09959309,0.00027273,2]
[340191012,1728805840073,-500.0,0.00027273,2]
[340191013,1728805840083,-505.12322668,0.00027273,2]
[340191014,1728805840092,-500.0,0.00027273,2]
[340191015,1728805840102,-501.51851618,0.00027273,2]
[340191016,1728805840111,-501.33930147,0.00027273,2]
[340191017,1728805840120,-437.360639,0.00027397,2]
[340191018,1728805840130,-1000.0,0.00028642,5]
[340191019,1728805840141,-518.67647806,0.00028642,5]
[340191020,1728805840151,-301.5202838,0.00028778,2]
[340191021,1728805840161,-3658.07376409,0.00029,14]
[340191022,1728805840171,-1000.0,0.00029,29]
[340191023,1728805840182,-301.5202838,0.00029315,2]
[340191024,1728805840196,-301.5202838,0.00029315,2]
[340191025,1728805840208,-420.0,0.00029371,2]
[340191026,1728805840218,-1000.0,0.0002943,2]
[340191027,1728805840228,-375.271,0.00029433,23]
[340191028,1728805840238,-8508.35174628,0.00029441,5]
[340191029,1728805840248,-5773.8863002,0.00029445,2]
[340191030,1728805840258,-3195.61671159,0.000295,2]
[340191031,1728805840267,-889.89,0.000295,10]
[340191032,1728805840278,-741.57,0.000295,10]
[340191033,1728805840287,-617.98,0.000295,10]
[340191034,1728805840296,-499.9361758,0.0002951,2]
[340191035,1728805840305,-356.45582444,0.0002951,2]
[340191036,1728805840315,-207.17962028,0.0002951,2]
[340191037,1728805840324,-2371.55242857,0.00029511,4]
[340191049,1728806302063,-177.759178,0.00026044,2]
[340191050,1728806302087,-250.0,0.00026438,2]
[340191051,1728806302110,-150.0,0.0002648,2]
[340191052,1728806302133,-250.0,0.00026511,2]
[340191053,1728806302156,-2369.407499,0.00026523,2]
[340191054,1728806302178,-250.0,0.00026583,2]
[340191055,1728806302202,-250.0,0.00026656,2]
[340191056,1728806302225,-250.0,0.00026728,2]
[340191057,1728806302247,-250.0,0.00026801,2]
[340191058,1728806302270,-250.0,0.00026873,2]
[340191059,1728806302293,-168.5713326,0.00026928,2]
[340191060,1728806302317,-250.0,0.00026946,2]
[340191061,1728806302350,-250.0,0.00027018,2]
[340191062,1728806302373,-250.0,0.00027091,2]
[340191063,1728806302395,-250.0,0.00027164,2]
[340191064,1728806302528,-300.0,0.00027207,2]
[340191065,1728806302551,-300.0,0.00027207,2]
[340191066,1728806302574,-2369.407499,0.00027208,2]
[340191067,1728806302597,-250.0,0.00027236,2]
[340191068,1728806302619,-250.0,0.00027309,2]
[340191069,1728806302642,-250.0,0.00027381,2]
[340191070,1728806302664,-474.44327,0.00027397,2]
[340191071,1728806302687,-250.0,0.00027454,2]
[340191072,1728806302710,-250.0,0.00027526,2]
[340191073,1728806302733,-250.0,0.00027599,2]
[340191074,1728806302755,-250.0,0.00027671,2]
[340191075,1728806302778,-250.0,0.00027744,2]
[340191076,1728806302801,-250.0,0.00027816,2]
[340191077,1728806302825,-2369.407499,0.00027893,2]
[340191078,1728806302846,-255.92664296,0.00027956,2]
[340191079,1728806302869,-24900.0,0.00027956,2]
[340191080,1728806302891,-1920.07707944,0.000289,2]
[340191082,1728806329216,-3000.0,0.00027708,2]
[340191083,1728806329240,-500.0,0.00028875,5]
[340191084,1728806329266,-505.12322668,0.00028875,5]
[340191085,1728806329290,-500.0,0.00028875,5]
[340191086,1728806329312,-6878.16255391,0.000289,2]
[340191087,1728806329334,-1000.0,0.00029,29]
[340191088,1728806329357,-6356.30681722,0.00029042,2]
[340191089,1728806329379,-11162.71062088,0.00029089,2]
[340191090,1728806329406,-500.0,0.00029199,2]
[340191091,1728806329428,-500.0,0.00029199,2]
[340191092,1728806329450,-500.0,0.00029199,2]
[340191093,1728806329473,-500.0,0.00029199,2]
[340191094,1728806329496,-500.0,0.00029199,2]
[340191095,1728806329518,-500.0,0.00029199,2]
[340191096,1728806329541,-500.0,0.00029199,2]
[340191097,1728806329563,-439.94111262,0.00029199,2]
[340191098,1728806329585,-500.0,0.00029199,2]
[340191099,1728806329608,-500.0,0.00029199,2]
[340191100,1728806329630,-418.91840179,0.00029199,2]
[340191101,1728806329652,-20000.0,0.000292,2]
[340191102,1728806329674,-925.17,0.00029304,10]
[340191103,1728806329698,-375.271,0.00029313,22]
[340191104,1728806329722,-41719.6394435,0.00029314,4]
[340191105,1728806329745,-13925.8655827,0.00029314,4]
[340191106,1728806329768,-499.9361758,0.00029323,2]
[340191107,1728806329792,-356.45582444,0.00029323,2]
[340191108,1728806329815,-207.17962028,0.00029323,2]
[340191109,1728806329837,-20000.0,0.00029324,2]
[340191110,1728806329858,-420.0,0.00029407,2]
[340191111,1728806329881,-1000.0,0.0002941,2]
[340191112,1728806329904,-125158.91833,0.0002942,4]
[340191113,1728806329927,-41777.5967482,0.0002942,4]
[340191114,1728806329950,-8508.35174628,0.0002943,5]
[340191115,1728806329971,-102549.4527957,0.0002943,2]
[340191116,1728806431128,500.0,0.00024,2]
[340191123,1728806840096,-6920.36315195,0.00026,120]
[340191124,1728806840117,-250.0,0.00026422,2]
[340191125,1728806840137,-250.0,0.00026494,2]
[340191126,1728806840157,-250.0,0.00026566,2]
[340191127,1728806840176,-250.0,0.00026639,2]
[340191128,1728806840196,-300.0,0.00026707,2]
[340191129,1728806840222,-300.0,0.00026708,2]
[340191130,1728806840245,-250.0,0.00026711,2]
[340191131,1728806840266,-250.0,0.00026784,2]
[340191132,1728806840289,-250.0,0.00026856,2]
[340191133,1728806840310,-250.0,0.00026929,2]
[340191134,1728806840421,-250.0,0.00027001,2]
[340191135,1728806840444,-250.0,0.00027074,2]
[340191136,1728806840467,-250.0,0.00027146,2]
[340191137,1728806840491,-250.0,0.00027219,2]
[340191138,1728806840514,-928.951919,0.00027267,2]
[340191139,1728806840538,-250.0,0.00027291,2]
[340191140,1728806840561,-166.666666,0.00027312,2]
[340191141,1728806840587,-250.0,0.00027364,2]
[340191142,1728806840608,-415.492607,0.00027397,2]
[340191143,1728806840631,-250.0,0.00027436,2]
[340191144,1728806840651,-250.0,0.00027509,2]
[340191145,1728806840674,-250.0,0.00027581,2]
[340191146,1728806840694,-250.0,0.00027653,2]
[340191147,1728806840713,-250.0,0.00027726,2]
[340191148,1728806840733,-170.61776197,0.00027775,2]
[340191149,1728806840754,-4684.58316786,0.00027776,2]
[340191151,1728806843135,-379.70928869,0.00027698,2]
[340191152,1728806948129,-166.666666,0.00026132,2]
[340191154,1728807026430,464.47596,0.00026912,2]
[340191183,1728807038261,-3000.0,0.00027037,2]
[340191184,1728807038271,-158.0,0.000273,2]
[340191185,1728807038280,-300.0,0.00027775,2]
[340191186,1728807038289,-300.0,0.00027775,2]
[340191187,1728807038298,-4099.98238318,0.00027776,2]
[340191190,1728807038910,-16115.43444896,0.00027776,2]
[340191191,1728807038920,-250.0,0.00027798,2]
[340191192,1728807038930,-166.666666,0.00027913,2]
[340191193,1728807038939,-1000.0,0.00029,29]
[340191194,1728807038948,-6356.30681723,0.00029145,2]
[340191195,1728807038957,-1000.0,0.00029214,2]
[340191196,1728807038969,-1000.0,0.00029323,7]
[340191197,1728807038978,-170.61776197,0.00029323,2]
[340191198,1728807038987,-491.33,0.00029417,10]
[340191199,1728807038996,-689.09,0.00029417,10]
[340191200,1728807039006,-574.24,0.00029417,10]
[340191201,1728807039016,-249.51907711,0.00029426,2]
[340191202,1728807039025,-349.95532306,0.00029426,2]
[340191203,1728807039034,-271.10456807,0.00029426,2]
[340191204,1728807039043,-324.32426687,0.00029426,2]
[340191205,1728807039052,-66751.4231097,0.00029427,4]
[340191206,1728807039061,-22281.3849324,0.00029427,4]
[340191207,1728807039071,-50754.71395012,0.0002943,2]
[340191208,1728807039080,-20000.0,0.00029447,2]
[340191209,1728807039089,-33375.7115548,0.00029463,4]
[340191210,1728807039098,-11140.6924662,0.00029463,4]
[340191211,1728807039108,-500.7932319,0.00029473,5]
[340191212,1728807039117,-500.0,0.00029473,5]
[340191213,1728807039126,-500.0,0.00029473,5]
[340191214,1728807039135,-500.0,0.00029473,5]
[340191215,1728807039144,-500.0,0.00029473,5]
[340191216,1728807039154,-500.0,0.00029473,5]
[340191217,1728807039162,-500.0,0.00029473,5]
[340191218,1728807039172,-151.0,0.0002949,7]
[340191219,1728807039181,-171.310379,0.0002949,7]
[340191220,1728807039192,-151.0,0.0002949,7]
[340191221,1728807039285,-151.0,0.0002949,7]
[340191222,1728807039294,-171.310379,0.0002949,7]
[340191223,1728807039304,-151.0,0.0002949,7]
[340191224,1728807039313,-33375.7115548,0.00029491,4]
[340191225,1728807039323,-11140.6924662,0.00029491,4]
[340191226,1728807039332,-151.0,0.00029501,7]
[340191227,1728807039341,-151.0,0.00029501,7]
[340191228,1728807039350,-151.0,0.00029501,7]
[340191229,1728807039360,-151.0,0.00029501,7]
[340191230,1728807039369,-242.447865,0.00029501,7]
[340191231,1728807039379,-242.447865,0.00029501,7]
[340191232,1728807039389,-242.447865,0.00029501,7]
[340191233,1728807039399,-242.447865,0.00029501,7]
[340191234,1728807039408,-151.0,0.00029501,2]
[340191235,1728807039418,-163.940852,0.00029501,2]
[340191236,1728807039428,-350.865872,0.00029501,7]
[340191237,1728807039437,-350.865872,0.00029501,7]
[340191238,1728807039447,-350.865872,0.00029501,7]
[340191239,1728807039456,-350.865872,0.00029501,7]
[340191240,1728807039466,-1118.757554,0.00029501,7]
[340191241,1728807039475,-1118.757554,0.00029501,7]
[340191242,1728807039485,-1118.757554,0.00029501,7]
[340191243,1728807039494,-1118.757554,0.00029501,7]
[340191244,1728807039504,-832.968628,0.00029501,7]
[340191245,1728807039513,-832.968628,0.00029501,7]
[340191246,1728807039522,-832.968628,0.00029501,7]
[340191247,1728807039532,-832.968628,0.00029501,7]
[340191248,1728807039542,-195.531126,0.00029501,7]
[340191249,1728807039552,-195.531126,0.00029501,7]
[340191250,1728807039561,-195.531126,0.00029501,7]